fUSD/lending_fUSD_20240121
["ID","MTS","AMOUNT","RATE_DAILY","PERIOD"]
[312392506,1705858248088,-1845.68,0.00036,5]
[312392507,1705858248097,-2563.78705927,0.00036,2]
[312392508,1705858248106,-2439.02520414,0.00036,7]
[312392509,1705858248116,-2000.0,0.00036,4]
[312392510,1705858248125,-154589.09468625,0.00036,7]
[312392511,1705858248137,-2410.01001848,0.00036,7]
[312392512,1705858248152,-119995.54050249,0.00036,7]
[312392513,1705858248250,-610.77352403,0.00036,7]
[312392514,1705858248261,-413.29918777,0.00036,7]
[312392515,1705858248273,-4058.9045388,0.00036,7]
[312392516,1705858248309,-319.0,0.00028229,2]
[312392517,1705858248318,-42545.5532522,0.00036,7]
[312392518,1705858248348,-13067.90918983,0.00036,7]
[312392519,1705858249376,-2012835.28978123,0.00023,3]
[312392520,1705858249385,-507.0,0.00028229,2]
[312392521,1705858249394,-235.0,0.00028229,2]
[312392522,1705858249404,-873.0,0.00028229,2]
[312392523,1705858249413,-438.58817944,0.00029348,2]
[312392524,1705858249422,-500.0,0.00035347,7]
[312392525,1705858249431,-500.0,0.00035347,2]
[312392526,1705858249440,-500.0,0.00035347,7]
[312392527,1705858249449,-500.0,0.00035347,2]
[312392528,1705858249458,-500.0,0.00035347,7]
[312392529,1705858249468,-500.0,0.00035347,2]
[312392530,1705858249477,-500.0,0.00035347,7]
[312392531,1705858249486,-89639.20919278,0.00036,7]
[312392532,1705858249495,-40254.76612825,0.00036,2]
[312392533,1705858249504,-306.0777504,0.00036,3]
[312392534,1705858249514,-200000.0,0.00036,7]
[312392535,1705858249523,-25077.58481992,0.00036,30]
[312392536,1705858249532,-1000.0,0.00036,120]
[312392537,1705858249541,-151.0,0.00036,7]
[312392538,1705858249551,-157.034584,0.00036,7]
[312392539,1705858249560,-1600.0,0.00036,3]
[312392540,1705858249569,-150.0,0.00036,2]
[312392541,1705858249577,-300.0,0.00036,2]
[312392542,1705858249586,-1500.0,0.00036,20]
[312392543,1705858249595,-5000.0,0.00036,10]
[312392544,1705858249604,-150.0,0.00036009,2]
[312392545,1705858249614,-295.54192318,0.00036011,6]
[312392546,1705858249623,-248.80459745,0.00036016,6]
[312392547,1705858249632,-151.0,0.00036017,7]
[312392548,1705858249641,-1377.294861,0.00036017,7]
[312392549,1705858249650,-1377.294861,0.00036017,7]
[312392550,1705858249660,-152.79566132,0.00036017,7]
[312392551,1705858249669,-6941.81657183,0.00036017,4]
[312392552,1705858249679,-1000.0,0.0003602,10]
[312392553,1705858249689,-150.0,0.0003603,2]
[312392554,1705858249698,-2228.86251026,0.00036036,6]
[312392555,1705858249707,-150.0,0.00036043,2]
[312392556,1705858249717,-717.96666443,0.00036054,6]
[312392557,1705858249727,-1099.59927298,0.00036073,6]
[312392558,1705858249736,-300.0,0.00036091,2]
[312392559,1705858249746,-1000.59953338,0.000361,2]
[312392560,1705858249755,-1500.0,0.00036121,2]
[312392561,1705858249765,-150.0,0.00036131,2]
[312392562,1705858249774,-152.53682314,0.00036142,7]
[312392563,1705858249783,-150.0,0.00036154,2]
[312392564,1705858249793,-500.0,0.00036164,7]
[312392565,1705858249802,-500.0,0.00036164,7]
[312392566,1705858249812,-150.0,0.00036167,2]
[312392567,1705858249821,-150.0,0.00036172,2]
[312392568,1705858249830,-150.0,0.0003619,2]
[312392569,1705858249839,-972.15254168,0.00036193,7]
[312392570,1705858249849,-284.18685088,0.00036198,4]
[312392571,1705858249858,-155.16714405,0.00036198,4]
[312392572,1705858249867,-156.50253449,0.00036198,4]
[312392573,1705858249876,-269.89826797,0.00036198,4]
[312392574,1705858249886,-1891.96918502,0.000362,14]
[312392575,1705858249895,-193.12631424,0.000362,4]
[312392576,1705858249905,-150.0,0.00036202,2]
[312392577,1705858249914,-150.0,0.00036203,2]
[312392578,1705858249924,-151.0,0.00036212,7]
[312392579,1705858250122,-151.0,0.00036212,7]
[312392580,1705858250133,-544.130464,0.00036212,7]
[312392581,1705858250143,-544.130464,0.00036212,7]
[312392582,1705858250154,-544.130464,0.00036212,7]
[312392583,1705858250164,-544.130464,0.00036212,7]
[312392584,1705858250174,-151.0,0.00036212,7]
[312392585,1705858250183,-151.0,0.00036212,7]
[312392586,1705858250193,-151.0,0.00036212,7]
[312392587,1705858250202,-151.0,0.00036212,7]
[312392588,1705858250212,-328.222102,0.00036212,7]
[312392589,1705858250222,-328.222102,0.00036212,7]
[312392590,1705858250231,-328.222102,0.00036212,7]
[312392591,1705858250240,-328.222102,0.00036212,7]
[312392592,1705858250250,-250.0,0.00036212,7]
[312392593,1705858250259,-250.0,0.00036212,7]
[312392594,1705858250269,-250.0,0.00036212,7]
[312392595,1705858250279,-250.0,0.00036212,7]
[312392596,1705858250289,-269.91609365,0.00036223,4]
[312392597,1705858250299,-3107.12216249,0.00036223,14]
[312392598,1705858250309,-346.47383179,0.00036223,4]
[312392599,1705858250318,-150.0,0.0003625,2]
[312392600,1705858250329,-150.0,0.00036256,2]
[312392601,1705858250338,-150.0,0.00036257,7]
[312392602,1705858250348,-150.0,0.00036257,7]
[312392603,1705858250358,-150.0,0.00036257,7]
[312392604,1705858250368,-150.0,0.00036277,2]
[312392605,1705858250378,-200.0,0.0003629,7]
[312392606,1705858250388,-200.0,0.0003629,7]
[312392607,1705858250399,-79074.0,0.0003629,3]
[312392608,1705858250412,-216.211124,0.0003629,7]
[312392609,1705858250422,-150.0,0.00036292,2]
[312392610,1705858250432,-1068.27846556,0.00036297,2]
[312392611,1705858250441,-151.0,0.00036298,7]
[312392612,1705858250451,-151.0,0.00036298,7]
[312392613,1705858250461,-151.0,0.00036298,7]
[312392614,1705858250470,-151.0,0.00036298,7]
[312392615,1705858250479,-151.0,0.00036298,7]
[312392616,1705858250489,-151.0,0.00036298,7]
[312392617,1705858250498,-151.0,0.00036298,7]
[312392618,1705858250508,-151.0,0.00036298,7]
[312392619,1705858250517,-151.0,0.00036298,7]
[312392620,1705858250527,-173.520998,0.00036298,7]
[312392621,1705858250536,-151.0,0.00036298,7]
[312392622,1705858250545,-151.0,0.00036298,7]
[312392623,1705858250555,-151.0,0.00036298,7]
[312392624,1705858250564,-151.0,0.00036298,7]
[312392625,1705858250574,-156.139311,0.00036298,7]
[312392626,1705858250583,-156.139311,0.00036298,7]
[312392627,1705858250591,-156.139311,0.00036298,7]
[312392628,1705858250601,-156.139311,0.00036298,7]
[312392629,1705858250610,-151.0,0.00036298,7]
[312392630,1705858250620,-151.0,0.00036298,7]
[312392631,1705858250630,-411.658369,0.00036298,7]
[312392632,1705858250640,-411.658369,0.00036298,7]
[312392633,1705858250649,-158.868333,0.00036298,7]
[312392634,1705858250660,-158.868333,0.00036298,7]
[312392635,1705858250669,-151.0,0.00036298,7]
[312392636,1705858250678,-151.0,0.00036298,7]
[312392637,1705858250688,-151.0,0.00036298,7]
[312392638,1705858250698,-151.0,0.00036298,7]
[312392639,1705858250708,-2604.058915,0.00036298,7]
[312392640,1705858250717,-2604.058915,0.00036298,7]
[312392641,1705858250726,-299.647335,0.00036298,7]
[312392642,1705858250735,-299.647335,0.00036298,7]
[312392643,1705858250744,-1098.304349,0.00036298,7]
[312392644,1705858250753,-1098.304349,0.00036298,7]
[312392645,1705858250762,-151.0,0.00036298,7]
[312392646,1705858250772,-150.0,0.000363,2]
[312392647,1705858250781,-150.0,0.000363,25]
[312392648,1705858250791,-5199.837552,0.000363,15]
[312392649,1705858250800,-2010.4,0.000363,2]
[312392650,1705858250809,-500.0,0.000363,3]
[312392651,1705858250819,-200.0,0.000363,2]
[312392652,1705858250829,-150.0,0.000363,8]
[312392653,1705858250838,-158.00128,0.000363,7]
[312392654,1705858250848,-877.0,0.000363,2]
[312392655,1705858250858,-1273.934367,0.000363,7]
[312392656,1705858250867,-1273.934367,0.000363,7]
[312392657,1705858250876,-344.0,0.000363,2]
[312392658,1705858250885,-317.9,0.000363,2]
[312392659,1705858250894,-899.7162,0.000363,2]
[312392660,1705858250904,-1000.0,0.000363,2]
[312392661,1705858250913,-2777.3727,0.000363,2]
[312392662,1705858250923,-3999.75,0.00036301,3]
[312392663,1705858250932,-151.0,0.00036303,7]
[312392664,1705858250941,-151.0,0.00036303,7]
[312392665,1705858250950,-520.30042821,0.00036304,4]
[312392666,1705858250959,-167.7325939,0.00036304,5]
[312392667,1705858250969,-151.13019096,0.00036306,7]
[312392668,1705858250978,-385.33437469,0.00036308,14]
[312392669,1705858250988,-181.2462356,0.00036308,2]
[312392670,1705858250997,-151.0,0.0003631,7]
[312392671,1705858251006,-1377.294861,0.0003631,7]
[312392672,1705858251016,-1377.294861,0.0003631,7]
[312392673,1705858251025,-1000.0,0.00036311,2]
[312392674,1705858251036,-561.5495,0.00036311,2]
[312392675,1705858251047,-500.0,0.00036311,2]
[312392676,1705858251056,-500.0,0.00036311,2]
[312392677,1705858251066,-500.0,0.00036311,2]
[312392678,1705858251075,-500.0,0.00036311,2]
[312392679,1705858251085,-500.0,0.00036311,2]
[312392680,1705858251095,-500.0,0.00036311,2]
[312392681,1705858251104,-500.0,0.00036311,2]
[312392682,1705858251114,-500.0,0.00036311,2]
[312392683,1705858251123,-500.0,0.00036311,2]
[312392684,1705858251132,-500.0,0.00036311,2]
[312392685,1705858251142,-500.0,0.00036311,2]
[312392686,1705858251152,-500.0,0.00036311,2]
[312392687,1705858251162,-500.0,0.00036311,2]
[312392688,1705858251172,-500.0,0.00036311,2]
[312392689,1705858251181,-500.0,0.00036311,2]
[312392690,1705858251191,-500.0,0.00036311,2]
[312392691,1705858251200,-500.0,0.00036311,2]
[312392692,1705858251209,-500.0,0.00036311,2]
[312392693,1705858251219,-500.0,0.00036311,2]
[312392694,1705858251228,-500.0,0.00036311,2]
[312392695,1705858251237,-155.3892,0.00036311,2]
[312392696,1705858251247,-151.0,0.00036313,7]
[312392697,1705858251256,-151.0,0.00036313,7]
[312392698,1705858251266,-411.658369,0.00036313,7]
[312392699,1705858251275,-411.658369,0.00036313,7]
[312392700,1705858251284,-158.868333,0.00036313,7]
[312392701,1705858251293,-158.868333,0.00036313,7]
[312392702,1705858251303,-151.0,0.00036313,7]
[312392703,1705858251312,-151.0,0.00036313,7]
[312392704,1705858251323,-151.0,0.00036313,7]
[312392705,1705858251332,-151.0,0.00036313,7]
[312392706,1705858251341,-2604.058915,0.00036313,7]
[312392707,1705858251350,-2604.058915,0.00036313,7]
[312392708,1705858251359,-299.647335,0.00036313,7]
[312392709,1705858251368,-299.647335,0.00036313,7]
[312392710,1705858251377,-1098.304349,0.00036313,7]
[312392711,1705858251386,-1098.304349,0.00036313,7]
[312392712,1705858251395,-151.0,0.00036313,7]
[312392713,1705858251404,-1273.934367,0.00036313,7]
[312392714,1705858251414,-1273.934367,0.00036313,7]
[312392715,1705858251423,-305.35588113,0.00036319,7]
[312392716,1705858251432,-152.14113685,0.00036327,7]
[312392717,1705858251441,-437.88,0.00036328,30]
[312392718,1705858251450,-150.0,0.00036332,4]
[312392719,1705858251459,-209.43404005,0.00036335,7]
[312392720,1705858251468,-215.78114415,0.00036335,7]
[312392721,1705858251477,-150.39788915,0.00036339,7]
[312392722,1705858251486,-150.0,0.00036343,2]
[312392723,1705858251495,-378.45529806,0.00036344,7]
[312392724,1705858251504,-155.0,0.00036346,4]
[312392725,1705858251513,-159.7479583,0.00036346,4]
[312392726,1705858251522,-150.39788915,0.00036374,7]
[312392727,1705858251533,-5169.51961609,0.00036393,7]
[312392728,1705858251542,-42000.0,0.00036393,7]
[312392729,1705858251551,-2257303.32304072,0.00036393,7]
[312392730,1705858251560,-1007.47724896,0.00036393,2]
[312392731,1705858251569,-11848.73463325,0.00036393,7]
[312392732,1705858251578,-50582.27693374,0.00036393,7]
[312392733,1705858251587,-2297.76226461,0.00036393,7]
[312392734,1705858251596,-286.3032361,0.00036393,7]
[312392735,1705858251605,-44102.77188629,0.00036393,7]
[312392736,1705858251614,-644.96419855,0.00036393,7]
[312392737,1705858251623,-203.57719128,0.00036393,7]
[312392738,1705858251632,-1019.56145605,0.00036393,7]
[312392739,1705858251641,-80188.83147752,0.00036393,7]
[312392740,1705858251650,-154.98041996,0.00036393,10]
[312392741,1705858251659,-100000.0,0.00036393,14]
[312392742,1705858251669,-7058.24643882,0.00036393,14]
[312392743,1705858251678,-10287.17848947,0.00036393,7]
[312392744,1705858251687,-249690.48456775,0.00036393,30]
[312392745,1705858251697,-1165.40859973,0.00036393,3]
[312392746,1705858251706,-500.0,0.00036393,30]
[312392747,1705858251715,-18624.90917979,0.00036393,3]
[312392748,1705858251724,-250892.45022587,0.00036393,30]
[312392749,1705858251733,-3769.78155708,0.00036393,3]
[312392750,1705858251743,-500.0,0.00036393,3]
[312392751,1705858251753,-500.0,0.00036393,3]
[312392752,1705858251763,-500.0,0.00036393,3]
[312392753,1705858251772,-500.0,0.00036393,3]
[312392754,1705858251782,-500.0,0.00036393,3]
[312392755,1705858251791,-500.0,0.00036393,3]
[312392756,1705858251800,-500.0,0.00036393,3]
[312392757,1705858251809,-500.0,0.00036393,3]
[312392758,1705858251818,-500.0,0.00036393,3]
[312392759,1705858251827,-500.0,0.00036393,3]
[312392760,1705858251836,-500.0,0.00036393,3]
[312392761,1705858251845,-500.0,0.00036393,3]
[312392762,1705858251853,-500.0,0.00036393,3]
[312392763,1705858251862,-500.0,0.00036393,3]
[312392764,1705858251871,-500.0,0.00036393,3]
[312392765,1705858251880,-500.0,0.00036393,3]
[312392766,1705858251889,-500.0,0.00036393,3]
[312392767,1705858251899,-500.0,0.00036393,3]
[312392768,1705858251909,-500.0,0.00036393,3]
[312392769,1705858251919,-500.0,0.00036393,3]
[312392770,1705858251928,-500.0,0.00036393,3]
[312392771,1705858251937,-500.0,0.00036393,3]
[312392772,1705858251946,-500.0,0.00036393,3]
[312392773,1705858251956,-500.0,0.00036393,3]
[312392774,1705858251965,-500.0,0.00036393,3]
[312392775,1705858251974,-500.0,0.00036393,3]
[312392776,1705858251983,-500.0,0.00036393,3]
[312392777,1705858251992,-500.0,0.00036393,3]
[312392778,1705858252001,-500.0,0.00036393,3]
[312392779,1705858252010,-500.0,0.00036393,3]
[312392780,1705858252019,-500.0,0.00036393,3]
[312392781,1705858252028,-500.0,0.00036393,3]
[312392782,1705858252040,-500.0,0.00036393,3]
[312392783,1705858252049,-500.0,0.00036393,3]
[312392784,1705858252058,-500.0,0.00036393,3]
[312392785,1705858252068,-500.0,0.00036393,3]
[312392786,1705858252077,-500.0,0.00036393,3]
[312392787,1705858252086,-500.0,0.00036393,3]
[312392788,1705858252095,-500.0,0.00036393,3]
[312392789,1705858252105,-526.525051,0.00036393,3]
[312392790,1705858252116,-152.31080223,0.00036398,7]
[312392791,1705858252125,-5301.01,0.000364,7]
[312392792,1705858252135,-8995.51,0.000364,7]
[312392793,1705858252144,-544.130464,0.000364,7]
[312392794,1705858252153,-544.130464,0.000364,7]
[312392795,1705858252164,-151.0,0.000364,7]
[312392796,1705858252173,-328.222102,0.000364,7]
[312392797,1705858252182,-328.222102,0.000364,7]
[312392798,1705858252192,-250.0,0.000364,7]
[312392799,1705858252201,-250.0,0.000364,7]
[312392800,1705858252210,-500.0,0.00036438,8]
[312392801,1705858252218,-152.53682314,0.00036567,7]
[312392802,1705858252227,-150.0,0.00036578,7]
[312392803,1705858252237,-150.0,0.00036578,7]
[312392804,1705858252246,-18842.04,0.000366,7]
[312392805,1705858252255,-151.0,0.000366,7]
[312392806,1705858252263,-283.782873,0.000366,7]
[312392807,1705858252272,-151.0,0.000366,7]
[312392808,1705858252281,-151.0,0.000366,7]
[312392809,1705858252290,-151.0,0.000366,7]
[312392810,1705858252299,-156.139311,0.000366,7]
[312392811,1705858252308,-156.139311,0.000366,7]
[312392812,1705858252317,-1580.93,0.00036613,15]
[312392813,1705858252327,-443.84,0.00036617,2]
[312392814,1705858252336,-1879.85265306,0.00036626,7]
[312392815,1705858252345,-152.31080223,0.00036629,7]
[312392816,1705858252355,-402.09478298,0.0003667,2]
[312392817,1705858252365,-450.0,0.00036673,3]
[312392818,1705858252374,-152.13195504,0.0003671,2]
[312392819,1705858252383,-500.0,0.00036712,9]
[312392820,1705858252393,-378.45529806,0.00036779,7]
[312392821,1705858252404,-152.14113685,0.00036781,7]
[312392822,1705858252414,-152.98,0.000368,2]
[312392823,1705858252423,-185.0,0.000368,26]
[312392824,1705858252433,-158.0479798,0.00036801,7]
[312392825,1705858252443,-378.45529806,0.00036809,7]
[312392826,1705858252452,-500.0,0.00036822,7]
[312392827,1705858252462,-378.45529806,0.00036853,7]
[312392828,1705858252471,-972.15254168,0.00036856,7]
[312392829,1705858252480,-150.0,0.00036898,7]
[312392830,1705858252489,-150.0,0.00036898,7]
[312392831,1705858252499,-158.87684391,0.000369,2]
[312392832,1705858252508,-150.0,0.000369,11]
[312392833,1705858252518,-150.0,0.00036914,2]
[312392834,1705858252528,-150.39788915,0.00036979,7]
[312392835,1705858252538,-1000.0,0.00036986,2]
[312392836,1705858252548,-500.0,0.00036986,10]
[312392837,1705858252557,-200.0,0.00036987,18]
[312392838,1705858252567,-200.0,0.00036987,33]
[312392839,1705858252576,-297.50610523,0.00036999,7]
[312392840,1705858252586,-536.44798855,0.00036999,7]
[312392841,1705858252595,-500.0,0.00036999,7]
[312392842,1705858252604,-500.0,0.00036999,7]
[312392843,1705858252614,-500.0,0.00036999,7]
[312392844,1705858252623,-500.0,0.00036999,7]
[312392845,1705858252633,-299.13920517,0.00036999,7]
[312392846,1705858252643,-241.65614658,0.00036999,7]
[312392847,1705858252652,-500.0,0.00036999,7]
[312392848,1705858252662,-500.0,0.00036999,7]
[312392849,1705858252672,-159.04338568,0.00036999,7]
[312392850,1705858252682,-100000.0,0.00037,7]
[312392851,1705858252691,-154.097367,0.00037,7]
[312392852,1705858252700,-1377.294861,0.00037,7]
[312392853,1705858252710,-1377.294861,0.00037,7]
[312392854,1705858252719,-162.22432,0.00037,7]
[312392855,1705858252728,-151.0,0.00037,7]
[312392856,1705858252738,-411.658369,0.00037,7]
[312392857,1705858252748,-411.658369,0.00037,7]
[312392858,1705858252757,-158.868333,0.00037,7]
[312392859,1705858252767,-158.868333,0.00037,7]
[312392860,1705858252777,-151.0,0.00037,7]
[312392861,1705858252787,-151.0,0.00037,7]
[312392862,1705858252797,-151.0,0.00037,7]
[312392863,1705858252806,-170.409964,0.00037,7]
[312392864,1705858252815,-2604.058915,0.00037,7]
[312392865,1705858252826,-2604.058915,0.00037,7]
[312392866,1705858252835,-299.647335,0.00037,7]
[312392867,1705858252845,-299.647335,0.00037,7]
[312392868,1705858252855,-1098.304349,0.00037,7]
[312392869,1705858252865,-1098.304349,0.00037,7]
[312392870,1705858252876,-151.0,0.00037,7]
[312392871,1705858252886,-1273.934367,0.00037,7]
[312392872,1705858252897,-1273.934367,0.00037,7]
[312392873,1705858252908,-700.0,0.00037,2]
[312392874,1705858252918,-955.62837083,0.00037,7]
[312392875,1705858252927,-150.0,0.00037,30]
[312392876,1705858252936,-450.68131411,0.00037,10]
[312392877,1705858252946,-310.02128018,0.00037,4]
[312392878,1705858252955,-1000.0,0.00037,2]
[312392879,1705858252965,-450.0,0.00037004,3]
[312392880,1705858252974,-158.0479798,0.00037024,7]
[312392881,1705858252984,-152.53682314,0.00037024,7]
[312392882,1705858252993,-151.13019096,0.00037055,7]
[312392883,1705858253003,-155.53562738,0.00037062,7]
[312392884,1705858253012,-150.39788915,0.00037077,7]
[312392885,1705858253021,-152.31080223,0.00037101,7]
[312392886,1705858253032,-972.15254168,0.00037101,7]
[312392887,1705858253046,-305.35588113,0.00037106,7]
[312392888,1705858253055,-150.39788915,0.00037107,7]
[312392889,1705858253065,-5000.0,0.00037115,6]
[312392890,1705858253075,-158.0479798,0.00037146,7]
[312392891,1705858253085,-152.31080223,0.00037177,7]
[312392892,1705858253094,-150.0,0.000372,30]
[312392893,1705858253103,-5301.01,0.000372,7]
[312392894,1705858253113,-8995.51,0.000372,7]
[312392895,1705858253123,-151.13019096,0.00037204,7]
[312392896,1705858253133,-150.0,0.00037219,7]
[312392897,1705858253142,-152.31080223,0.00037221,7]
[312392898,1705858253153,-500.0,0.0003726,11]
[312392899,1705858253162,-152.79566132,0.00037266,7]
[312392900,1705858253172,-152.31080223,0.00037285,7]
[312392901,1705858253181,-305.35588113,0.00037289,7]
[312392902,1705858253190,-18842.04,0.000373,7]
[312392903,1705858253200,-150.0,0.000373,9]
[312392904,1705858253209,-798.71625889,0.00037332,2]
[312392905,1705858253221,-972.15254168,0.00037332,7]
[312392906,1705858253231,-152.14113685,0.00037334,7]
[312392907,1705858253241,-378.45529806,0.00037375,7]
[312392908,1705858253250,-152.14113685,0.00037383,7]
[312392909,1705858253261,-2010.4,0.00037385,2]
[312392910,1705858253272,-2000.0,0.00037393,30]
[312392911,1705858253281,-2000.0,0.00037393,30]
[312392912,1705858253290,-2000.0,0.00037393,30]
[312392913,1705858253299,-317.9,0.00037395,2]
[312392914,1705858253309,-150.0,0.000374,30]
[312392915,1705858253318,-152.53682314,0.00037406,7]
[312392916,1705858253330,-150.39788915,0.00037408,7]
[312392917,1705858253339,-150.39788915,0.00037411,7]
[312392918,1705858253348,-152.58,0.00037429,2]
[312392919,1705858253358,-150.0,0.00037429,2]
[312392920,1705858253368,-150.0,0.00037429,2]
[312392921,1705858253378,-157.48867627,0.00037445,7]
[312392922,1705858253387,-158.0479798,0.0003747,7]
[312392923,1705858253398,-500.0,0.00037479,7]
[312392924,1705858253408,-152.79566132,0.00037484,7]
[312392925,1705858253418,-305.35588113,0.00037497,7]
[312392926,1705858253429,-13083.45645328,0.00037498,6]
[312392927,1705858253438,-450.0,0.000375,3]
[312392928,1705858253448,-150.39788915,0.0003751,7]
[312392929,1705858253457,-378.45529806,0.00037512,7]
[312392930,1705858253466,-1879.85265306,0.0003752,7]
[312392931,1705858253475,-156.06191131,0.00037521,2]
[312392932,1705858253485,-500.0,0.00037534,12]
[312392933,1705858253494,-158.0479798,0.00037537,7]
[312392934,1705858253504,-150.0,0.00037539,7]
[312392935,1705858253513,-152.0,0.00037549,3]
[312392936,1705858253522,-152.14113685,0.00037567,7]
[312392937,1705858253532,-150.0,0.000376,30]
[312392938,1705858253541,-152.31080223,0.00037624,7]
[312392939,1705858253550,-152.04,0.00037671,2]
[312392940,1705858253559,-158.0479798,0.00037685,7]
[312392941,1705858253569,-150.39788915,0.00037712,7]
[312392942,1705858253578,-302.94,0.0003778,2]
[312392943,1705858253587,-150.0,0.000378,30]
[312392944,1705858253596,-218.84868106,0.000378,31]
[312392945,1705858253605,-152.98,0.000378,2]
[312392946,1705858253615,-500.0,0.00037808,13]
[312392947,1705858253624,-972.15254168,0.00037808,7]
[312392948,1705858253634,-6018.28,0.00037808,2]
[312392949,1705858253643,-401.94,0.00037812,2]
[312392950,1705858253652,-941.86,0.00037812,2]
[312392951,1705858253661,-941.86,0.00037812,2]
[312392952,1705858253670,-401.94,0.00037812,2]
[312392953,1705858253679,-401.94,0.00037812,2]
[312392954,1705858253688,-941.86,0.00037812,2]
[312392955,1705858253698,-401.94,0.00037812,2]
[312392956,1705858253707,-941.86,0.00037812,2]
[312392957,1705858253716,-401.94,0.00037812,2]
[312392958,1705858253726,-941.86,0.00037812,2]
[312392959,1705858253735,-401.94,0.00037812,2]
[312392960,1705858253745,-941.86,0.00037812,2]
[312392961,1705858253754,-401.94,0.00037812,2]
[312392962,1705858254003,-941.86,0.00037812,2]
[312392963,1705858254013,-941.86,0.00037812,2]
[312392964,1705858254024,-399.98,0.00037812,2]
[312392965,1705858254034,-151.13019096,0.0003782,7]
[312392966,1705858254048,-378.45529806,0.00037834,7]
[312392967,1705858254057,-972.15254168,0.00037854,7]
[312392968,1705858254067,-305.35588113,0.0003787,7]
[312392969,1705858254076,-21165.0,0.0003789,3]
[312392970,1705858254086,-512.27818094,0.00037897,2]
[312392971,1705858254095,-5301.01,0.000379,7]
[312392972,1705858254104,-8995.51,0.000379,7]
[312392973,1705858254114,-151.0,0.000379,7]
[312392974,1705858254123,-544.130464,0.000379,7]
[312392975,1705858254133,-544.130464,0.000379,7]
[312392976,1705858254143,-151.0,0.000379,7]
[312392977,1705858254152,-328.222102,0.000379,7]
[312392978,1705858254162,-328.222102,0.000379,7]
[312392979,1705858254171,-250.0,0.000379,7]
[312392980,1705858254181,-250.0,0.000379,7]
[312392981,1705858254190,-671779.300788,0.000379,3]
[312392982,1705858254199,-150.0,0.000379,12]
[312392983,1705858254209,-150.0,0.00037914,2]
[312392984,1705858254218,-150.39788915,0.00037949,7]
[312392985,1705858254227,-1879.85265306,0.00037951,7]
[312392986,1705858254236,-1879.85265306,0.00037954,7]
[312392987,1705858254245,-200.0,0.00037987,21]
[312392988,1705858254254,-200.0,0.00037987,35]
[312392989,1705858254267,-450.0,0.00037996,3]
[312392990,1705858254276,-100000.0,0.00038,8]
[312392991,1705858254285,-151.0,0.00038,7]
[312392992,1705858254295,-151.0,0.00038,7]
[312392993,1705858254304,-151.0,0.00038,7]
[312392994,1705858254313,-255.322738,0.00038,7]
[312392995,1705858254322,-156.139311,0.00038,7]
[312392996,1705858254331,-156.139311,0.00038,7]
[312392997,1705858254341,-1273.934367,0.00038,7]
[312392998,1705858254350,-1273.934367,0.00038,7]
[312392999,1705858254359,-150.0,0.00038,30]
[312393000,1705858254369,-155.00208604,0.00038,4]
[312393001,1705858254378,-612.97157701,0.00038,30]
[312393002,1705858254387,-2000.0,0.00038,30]
[312393003,1705858254396,-400.0,0.00038,11]
[312393004,1705858254406,-18842.04,0.00038,7]
[312393005,1705858254415,-1377.294861,0.00038,7]